bitfinex/quotes_BTCUSD_20250206
["timestamp","ask_amount","ask_price","bid_price","bid_amount"]
[1738854304460,0.00102004,97859.0,97844.0,0.10250365]
[1738854304664,0.00102004,97859.0,97840.0,0.00146363]
[1738854304665,0.0752,97849.0,97840.0,0.00146363]
[1738854304922,0.00102004,97848.0,97840.0,0.00046363]
[1738854305142,0.15431804,97848.0,97847.0,0.004]
[1738854305291,0.00102004,97848.0,97840.0,0.00046363]
[1738854305612,0.153309,97841.0,97840.0,0.00046363]
[1738854305821,0.00102004,97841.0,97840.0,0.00046363]
[1738854306072,0.0752,97849.0,97840.0,0.00046363]
[1738854306820,0.153309,97841.0,97840.0,0.00046363]
[1738854307094,0.15432904,97841.0,97840.0,0.00046363]
[1738854307366,0.00102004,97841.0,97840.0,0.00046363]
[1738854307625,0.00102004,97846.0,97840.0,0.00046363]
[1738854307933,0.15432304,97845.0,97840.0,0.00046363]
[1738854308180,0.00102004,97845.0,97840.0,0.00046363]
[1738854308682,0.20441,97843.0,97840.0,0.00046363]
[1738854308941,0.153309,97841.0,97840.0,0.00046363]
[1738854309204,0.00102004,97841.0,97840.0,0.00046363]
[1738854309470,0.15432904,97841.0,97840.0,0.00046363]
[1738854309952,0.02038781,97848.0,97840.0,0.15377463]
[1738854310189,0.02038781,97848.0,97840.0,0.00046363]
[1738854310434,0.00102004,97847.0,97840.0,0.00046363]
[1738854310682,0.00102004,97847.0,97840.0,0.00018136]
[1738854310925,0.002,97845.0,97840.0,0.00018136]
[1738854311442,0.153309,97841.0,97840.0,0.00018136]
[1738854311691,0.15432904,97841.0,97840.0,0.00018136]
[1738854313247,0.30432904,97841.0,97840.0,0.00018136]
[1738854313492,0.40581265,97841.0,97840.0,0.00018136]
[1738854313737,0.50398388,97841.0,97840.0,0.00018136]
[1738854314275,0.52798388,97841.0,97840.0,0.00018136]
[1738854314535,0.57478388,97841.0,97840.0,0.00018136]
[1738854314806,0.57378388,97841.0,97840.0,0.00018136]
[1738854315047,0.57478388,97841.0,97840.0,0.00018136]
[1738854315289,0.01,97836.0,97830.0,0.0001067]
[1738854315555,0.29243229,97801.0,97781.0,0.08083625]
[1738854315812,0.08182004,97800.0,97791.0,0.00066278]
[1738854316073,0.153376,97799.0,97791.0,0.00066278]
[1738854316369,0.00102004,97798.0,97791.0,0.00066278]
[1738854316596,0.02080575,97797.0,97791.0,0.00066278]
[1738854317654,0.02080575,97797.0,97791.0,0.00166278]
[1738854318176,0.153386,97793.0,97791.0,0.00066278]
[1738854318405,0.02080575,97797.0,97791.0,0.00366278]
[1738854318652,0.02080575,97797.0,97793.0,0.153384]
[1738854318924,0.02080575,97797.0,97791.0,0.00066278]
[1738854318925,0.02180575,97797.0,97791.0,0.00066278]
[1738854319168,0.00015962,97796.0,97792.0,0.153386]
[1738854319413,0.00015962,97796.0,97791.0,0.00066278]
[1738854320038,0.0762,97826.0,97792.0,0.10250365]
[1738854320254,0.02092031,97809.0,97792.0,0.10250365]
[1738854320461,0.02092031,97809.0,97791.0,0.00066278]
[1738854320462,0.00102004,97808.0,97791.0,0.00066278]
[1738854320667,0.00102004,97808.0,97792.0,0.003]
[1738854320900,0.00102004,97808.0,97795.0,0.15338]
[1738854321102,0.00086547,97808.0,97791.0,0.10916643]
[1738854321309,0.153367,97805.0,97791.0,0.00666278]
[1738854321512,0.02092031,97809.0,97791.0,0.00666278]
[1738854321513,0.0007109,97804.0,97791.0,0.00066278]
[1738854321718,0.0007109,97803.0,97792.0,0.153386]
[1738854322142,0.0007109,97803.0,97794.0,0.153382]
[1738854322346,0.0007109,97806.0,97794.0,0.153382]
[1738854322481,0.0007109,97806.0,97791.0,0.00166278]
[1738854322861,0.0007109,97806.0,97796.0,0.15338]
[1738854323070,0.0007109,97806.0,97791.0,0.00066278]
[1738854323485,0.0007109,97805.0,97791.0,0.00366278]
[1738854323697,0.02092031,97809.0,97792.0,0.10250365]
[1738854323906,0.02092031,97809.0,97803.0,0.153368]
[1738854324119,0.08083625,97838.0,97804.0,0.10250365]
[1738854324120,0.00086547,97814.0,97804.0,0.10250365]
[1738854324330,0.0801,97837.0,97804.0,0.10250365]
[1738854324539,0.0801,97837.0,97825.0,0.153333]
[1738854324749,0.0801,97837.0,97827.0,0.153331]
[1738854324954,0.0801,97837.0,97805.0,0.00102238]
[1738854325158,0.01022169,97838.0,97833.0,0.153322]
[1738854325373,0.00086547,97845.0,97808.0,0.10352582]
[1738854325579,0.153296,97850.0,97837.0,0.153315]
[1738854325804,0.0104575,97852.0,97818.0,0.081]
[1738854325805,0.00086547,97852.0,97838.0,0.10250365]
[1738854326030,0.00086547,97853.0,97838.0,0.10250365]
[1738854326250,0.00086547,97853.0,97839.0,0.204417]
[1738854326458,0.02081167,97854.0,97840.0,0.10250365]
[1738854326665,0.02081167,97854.0,97852.0,0.153291]
[1738854327109,0.01029621,97860.0,97847.0,0.1533]
[1738854327310,0.02011611,97856.0,97850.0,0.153295]
[1738854327539,0.02011611,97856.0,97854.0,0.153288]
[1738854328381,0.18992978,97870.0,97853.0,0.204387]
[1738854328382,0.00022428,97870.0,97865.0,0.153272]
[1738854328586,0.00022428,97870.0,97869.0,0.153266]
[1738854328799,0.00022428,97870.0,97869.0,0.25576965]
[1738854330073,0.00022428,97870.0,97869.0,0.26476965]
[1738854330286,0.00022428,97870.0,97869.0,0.10250365]
[1738854330670,0.00022428,97870.0,97869.0,0.26476965]
[1738854330896,0.00022428,97870.0,97869.0,0.25576965]
[1738854331094,0.00022428,97870.0,97869.0,0.001]
[1738854331299,0.00022428,97870.0,97869.0,0.01]
[1738854331510,0.00022428,97870.0,97869.0,0.009]
[1738854332116,0.00022428,97870.0,97869.0,0.01277273]
[1738854332352,0.00022428,97870.0,97869.0,0.26854238]
[1738854332762,0.00022428,97870.0,97869.0,0.25954238]
[1738854332965,0.00022428,97870.0,97869.0,0.26454238]
[1738854333169,0.00022428,97870.0,97869.0,0.10627638]
[1738854333373,0.00022428,97870.0,97869.0,0.26454238]
[1738854333710,0.00022428,97870.0,97869.0,0.25954238]
[1738854333912,0.00022428,97870.0,97869.0,0.00377273]
[1738854334117,0.07888975,97870.0,97869.0,0.006]
[1738854334341,0.204363,97865.0,97830.0,0.0485]
[1738854334514,0.00086547,97864.0,97833.0,0.204429]
[1738854334718,0.09845594,97870.0,97860.0,0.153279]
[1738854334931,0.09845594,97870.0,97861.0,0.00363617]
[1738854334932,0.00086547,97869.0,97861.0,0.00363617]
[1738854335537,0.00086547,97869.0,97845.0,0.204403]
[1738854335750,0.09845594,97870.0,97869.0,0.006]
[1738854335950,0.02065594,97870.0,97864.0,0.153272]
[1738854336185,0.02065594,97870.0,97848.0,0.204398]
[1738854336528,0.153269,97867.0,97865.0,0.00363376]
[1738854336734,0.41471444,97870.0,97841.0,0.153309]
[1738854336735,0.153289,97854.0,97841.0,0.153309]
[1738854336943,0.02065594,97870.0,97842.0,0.00364761]
[1738854336944,0.1897055,97851.0,97842.0,0.00364761]
[1738854337144,0.00086547,97850.0,97842.0,0.00364761]
[1738854337354,0.0793,97849.0,97832.0,0.09031675]
[1738854337535,0.00086547,97848.0,97832.0,0.09031675]
[1738854337763,0.00086547,97848.0,97833.0,0.00365303]
[1738854337764,0.1897055,97842.0,97833.0,0.00365303]
[1738854337969,0.00086547,97841.0,97833.0,0.00365303]
[1738854338189,0.17397734,97838.0,97833.0,0.00365303]
[1738854338367,0.00086547,97837.0,97832.0,0.09031675]
[1738854338581,0.02066234,97838.0,97835.0,0.153318]
[1738854338790,0.0774,97867.0,97836.0,0.10250365]
[1738854338995,0.0774,97867.0,97865.0,0.153272]
[1738854339197,0.00022428,97870.0,97858.0,0.204377]
[1738854339398,0.02081097,97870.0,97868.0,0.153266]
[1738854339632,0.00022428,97870.0,97868.0,0.153266]
[1738854339838,0.00022428,97870.0,97869.0,0.00363136]
[1738854340273,0.00022428,97870.0,97868.0,0.153267]
[1738854340481,0.00022428,97870.0,97869.0,0.10250365]
[1738854340694,0.00022428,97870.0,97869.0,0.10613501]
[1738854340906,0.00022428,97870.0,97869.0,0.1071567]
[1738854341327,0.00022428,97870.0,97869.0,0.25715651]
[1738854341531,0.00022428,97870.0,97869.0,0.25613501]
[1738854341738,0.00022428,97870.0,97869.0,0.25572452]
[1738854341941,0.00022428,97870.0,97869.0,0.27872452]
[1738854342148,0.00022428,97870.0,97869.0,0.31137508]
[1738854342363,0.00022428,97870.0,97869.0,0.28272452]
[1738854342596,0.00022428,97870.0,97869.0,0.25772452]
[1738854342844,0.00022428,97870.0,97869.0,0.26472452]
[1738854343046,0.00022428,97870.0,97869.0,0.25672452]
[1738854343462,0.00022428,97870.0,97869.0,0.26572452]
[1738854343665,0.00022428,97870.0,97869.0,0.25672452]
[1738854344070,0.00022428,97870.0,97869.0,0.28872452]
[1738854344275,0.00022428,97870.0,97869.0,0.28772452]
[1738854344486,5.6e-07,97877.0,97870.0,0.173]
[1738854344691,0.00013982,97877.0,97876.0,0.42875865]
[1738854345111,0.00013982,97877.0,97876.0,0.43238087]
[1738854346369,0.00013982,97877.0,97876.0,0.43738087]
[1738854346370,8.2e-07,97877.0,97876.0,0.43738087]
[1738854346772,8.2e-07,97877.0,97876.0,0.44638087]
[1738854347206,8.2e-07,97877.0,97876.0,0.44622629]
[1738854347427,8.2e-07,97877.0,97876.0,0.45622629]
[1738854347847,8.2e-07,97877.0,97876.0,0.46622629]
[1738854348054,8.2e-07,97877.0,97876.0,0.45622629]
[1738854348446,8.2e-07,97877.0,97876.0,0.45122629]
[1738854348673,0.00100082,97877.0,97876.0,0.44222629]
[1738854348890,8.2e-07,97877.0,97876.0,0.44222629]
[1738854349335,0.00086547,97925.0,97924.0,0.15318]
[1738854349554,0.00086547,97925.0,97890.0,0.20431]
[1738854349555,0.153188,97919.0,97890.0,0.20431]
[1738854349763,0.00086547,97918.0,97908.0,0.153204]
[1738854349965,0.00086547,97918.0,97891.0,0.10250365]
[1738854349966,0.00086547,97918.0,97917.0,0.15319]
[1738854350177,0.00132984,97925.0,97924.0,0.15318]
[1738854350393,0.00046437,97925.0,97892.0,0.15]
[1738854350600,0.00046437,97925.0,97924.0,0.15318]
[1738854351842,0.00046437,97925.0,97901.0,0.204287]
[1738854351843,0.00046437,97925.0,97916.0,0.153192]
[1738854352050,0.00086547,97924.0,97876.0,0.0001068]
[1738854352301,0.153181,97923.0,97876.0,0.0001068]
[1738854352502,0.00086547,97922.0,97890.0,0.003]
[1738854352727,0.00086547,97922.0,97909.0,0.153203]
[1738854353146,0.00086547,97922.0,97916.0,0.001]
[1738854353371,0.15319,97917.0,97916.0,0.001]
[1738854353583,0.23425547,97917.0,97916.0,0.001]
[1738854353802,0.43249,97917.0,97916.0,0.001]
[1738854354021,0.153217,97900.0,97883.0,0.204323]
[1738854354234,0.00086547,97899.0,97894.0,0.153226]
[1738854354377,0.153204,97909.0,97895.0,0.153224]
[1738854354594,0.00086547,97908.0,97899.0,0.153219]
[1738854354800,0.00086547,97908.0,97884.0,0.10250365]
[1738854354973,0.00086547,97916.0,97888.0,0.08083625]
[1738854355185,0.10058051,97917.0,97889.0,0.10250365]
[1738854355395,0.00132984,97925.0,97916.0,0.002]
[1738854355606,0.00132984,97925.0,97913.0,0.153197]
[1738854355607,0.02038868,97920.0,97913.0,0.153197]
[1738854355815,0.00046437,97925.0,97914.0,0.10250365]
[1738854356046,0.00046437,97925.0,97924.0,0.15318]
[1738854356736,0.00046437,97925.0,97888.0,0.204313]
[1738854356885,0.00046437,97925.0,97924.0,0.15691218]
[1738854357082,0.00046437,97925.0,97924.0,0.15318]
[1738854357457,0.00046437,97925.0,97924.0,0.15691218]
[1738854358489,0.00046437,97925.0,97924.0,0.00373218]
[1738854358697,0.00046437,97925.0,97924.0,0.00673218]
[1738854358826,0.00132984,97925.0,97924.0,0.003]
[1738854359034,0.00132984,97925.0,97911.0,0.153199]
[1738854359236,0.00086547,97924.0,97908.0,0.204271]
[1738854359442,0.204257,97916.0,97912.0,0.00373939]
[1738854359706,0.00086547,97915.0,97909.0,0.00374119]
[1738854359872,0.153195,97914.0,97898.0,0.15322]
[1738854360225,0.00086547,97913.0,97899.0,0.00374056]
[1738854360442,0.00086547,97913.0,97889.0,0.08083625]
[1738854360443,0.02079956,97911.0,97889.0,0.08083625]
[1738854360641,0.00046437,97925.0,97900.0,0.1833399]
[1738854360873,0.00046437,97925.0,97924.0,0.15318]
[1738854361094,0.00046437,97925.0,97906.0,0.204276]
[1738854361095,0.00132984,97925.0,97906.0,0.204276]
[1738854361209,0.15364237,97925.0,97924.0,0.00372552]
[1738854361418,0.15364237,97925.0,97880.0,0.08083625]
[1738854361419,0.153219,97899.0,97880.0,0.08083625]
[1738854361627,0.153231,97891.0,97890.0,0.08083625]
[1738854362016,0.0754,97908.0,97890.0,0.00357807]
[1738854362223,0.153231,97891.0,97890.0,0.00357807]
[1738854362429,0.09612394,97891.0,97876.0,0.0001068]
[1738854362855,0.09612394,97891.0,97890.0,0.003]
[1738854363062,0.0754,97891.0,97890.0,0.153233]
[1738854363274,0.0789,97906.0,97878.0,0.08083625]
[1738854363492,0.00086547,97905.0,97895.0,0.204299]
[1738854363698,0.0789,97906.0,97896.0,0.10250365]
[1738854363912,0.00013923,97907.0,97906.0,0.153208]
[1738854364116,0.00013923,97907.0,97906.0,0.25571165]
[1738854364355,0.00013923,97907.0,97906.0,0.25928603]
[1738854364785,0.00013923,97907.0,97906.0,0.00357438]
[1738854365202,0.0010047,97907.0,97890.0,0.001]
[1738854365426,0.0010047,97907.0,97880.0,0.08083625]
[1738854365649,0.0010047,97907.0,97906.0,0.011]
[1738854365865,0.00013923,97907.0,97906.0,0.011]
[1738854366047,0.00013923,97907.0,97906.0,0.164208]
[1738854366458,0.00013923,97907.0,97906.0,0.15861509]
[1738854366806,0.00013923,97907.0,97906.0,0.26111874]
[1738854367006,0.00013923,97907.0,97906.0,0.25911874]
[1738854367846,0.00013923,97907.0,97906.0,0.26211874]
[1738854368133,0.00013923,97907.0,97906.0,0.25911874]
[1738854368552,0.00013923,97907.0,97906.0,0.26311874]
[1738854368730,0.00013923,97907.0,97906.0,0.25911874]
[1738854369111,0.00013923,97907.0,97906.0,0.26511874]
[1738854369901,0.00013923,97907.0,97906.0,0.25911874]
[1738854370815,0.00013923,97907.0,97906.0,0.26011874]
[1738854371265,0.00013923,97907.0,97906.0,0.26311874]
[1738854371470,0.00013923,97907.0,97906.0,0.28987131]
[1738854371690,0.00013923,97907.0,97906.0,0.29187131]
[1738854371886,0.00013923,97907.0,97906.0,0.47387131]
[1738854372482,0.00022428,97915.0,97914.0,0.234395]
[1738854372483,5.1e-07,97915.0,97914.0,0.234395]
[1738854372688,0.00022428,97939.0,97938.0,0.303158]
[1738854372927,0.00068828,97939.0,97938.0,0.58821422]
[1738854373111,0.00068828,97939.0,97938.0,0.59159457]
[1738854373612,0.01680127,97967.0,97939.0,0.173]
[1738854373835,0.00036364,97950.0,97949.0,0.42864365]
[1738854374046,0.00036364,97950.0,97949.0,0.46867622]
[1738854374386,0.00036364,97950.0,97949.0,0.48204281]
[1738854374590,0.01680127,97967.0,97966.0,0.326114]
[1738854374856,0.01680127,97967.0,97966.0,0.45937022]
[1738854375072,0.01680127,97967.0,97966.0,0.46272644]
[1738854376129,0.01680127,97967.0,97966.0,0.44872644]
[1738854376310,0.01680127,97967.0,97966.0,0.10585987]
[1738854376463,0.01680127,97967.0,97966.0,0.26797387]
[1738854377066,0.01680127,97967.0,97966.0,0.27197387]
[1738854377490,0.01680127,97967.0,97966.0,0.26797387]
[1738854377915,0.01680127,97967.0,97966.0,0.41197387]
[1738854378258,0.01680127,97967.0,97966.0,0.45167073]
[1738854378437,0.01680127,97967.0,97966.0,0.44867073]
[1738854378657,0.01680127,97967.0,97966.0,0.43197387]
[1738854378850,0.01680127,97967.0,97966.0,0.46265552]
[1738854379065,0.01680127,97967.0,97966.0,0.46365552]
[1738854379289,0.01680127,97967.0,97966.0,0.46265552]
[1738854379699,0.01680127,97967.0,97966.0,0.43397387]
[1738854379917,0.01680127,97967.0,97966.0,0.43197387]
[1738854380542,5.5e-07,97968.0,97966.0,0.43197387]
[1738854380748,5.5e-07,97968.0,97967.0,0.30716656]
[1738854380967,5.5e-07,97968.0,97967.0,0.28314617]
[1738854381186,5.5e-07,97968.0,97967.0,0.25638648]
[1738854382271,5.5e-07,97968.0,97967.0,0.27938648]
[1738854382506,5.5e-07,97968.0,97967.0,0.28838648]
[1738854382707,5.5e-07,97968.0,97967.0,0.27938648]
[1738854382912,5.5e-07,97968.0,97967.0,0.30999474]
[1738854383129,5.5e-07,97968.0,97967.0,0.28838648]
[1738854383344,5.5e-07,97968.0,97967.0,0.29238648]
[1738854383690,5.5e-07,97968.0,97967.0,0.28838648]
[1738854384095,5.5e-07,97968.0,97967.0,0.29338648]
[1738854384302,5.5e-07,97968.0,97967.0,0.28438648]
[1738854384699,5.5e-07,97968.0,97967.0,0.29338648]
[1738854385106,5.5e-07,97968.0,97967.0,0.27038648]
[1738854385919,5.5e-07,97969.0,97968.0,0.326111]
[1738854386129,5.5e-07,97969.0,97968.0,0.48851465]
[1738854386357,5.5e-07,97969.0,97968.0,0.49239877]
[1738854386569,5.5e-07,97969.0,97968.0,0.48239877]
[1738854387207,5.5e-07,97969.0,97968.0,0.43749877]
[1738854387413,5.5e-07,97969.0,97968.0,0.45637303]
[1738854387845,5.5e-07,97969.0,97968.0,0.28337303]
[1738854387846,0.00022463,97969.0,97968.0,0.28337303]
[1738854388473,0.00022463,97969.0,97968.0,0.44237303]
[1738854388680,0.00022463,97969.0,97968.0,0.29237303]
[1738854388888,0.00022463,97969.0,97968.0,0.16945905]
[1738854389064,0.07996582,97970.0,97969.0,0.15290595]
[1738854389288,0.07996582,97970.0,97969.0,0.2554096]
[1738854389409,0.07996582,97970.0,97969.0,0.10638482]
[1738854390069,0.00022471,97983.0,97974.0,0.153101]
[1738854390271,0.00022471,97983.0,97974.0,0.25662528]
[1738854390479,0.00022471,97983.0,97974.0,0.25949674]
[1738854391798,0.00022471,97983.0,97974.0,0.26849674]
[1738854392002,0.00022471,97983.0,97974.0,0.27838134]
[1738854392175,0.00022471,97983.0,97974.0,0.31038134]
[1738854392380,0.00022471,97983.0,97974.0,0.46038134]
[1738854392584,0.00022471,97983.0,97974.0,0.45138134]
[1738854393000,0.00022471,97983.0,97974.0,0.45338134]
[1738854393408,0.00022471,97983.0,97974.0,0.45138134]
[1738854393863,0.00022471,97983.0,97974.0,0.43138134]
[1738854394077,0.00022471,97983.0,97974.0,0.44038134]
[1738854394284,0.00022471,97983.0,97974.0,0.42838134]
[1738854394490,0.00022471,97983.0,97974.0,0.45138134]
[1738854394696,0.00022471,97983.0,97974.0,0.44549674]
[1738854394884,0.00022471,97983.0,97974.0,0.43649674]
[1738854395015,0.00022471,97983.0,97974.0,0.44549674]
[1738854395499,0.00022471,97983.0,97974.0,0.43649674]
[1738854395705,0.00022471,97983.0,97974.0,0.44549674]
[1738854396046,0.00022471,97983.0,97974.0,0.44149674]
[1738854396495,0.00022471,97983.0,97974.0,0.44449674]
[1738854396692,2.1e-07,97976.0,97975.0,0.173]
[1738854396914,2.1e-07,97976.0,97975.0,0.30710419]
[1738854397264,2.1e-07,97976.0,97975.0,0.32924717]
[1738854397912,2.1e-07,97976.0,97975.0,0.33824717]
[1738854398116,2.1e-07,97976.0,97975.0,0.33124717]
[1738854398351,2.1e-07,97976.0,97975.0,0.32124717]
[1738854398559,2.1e-07,97976.0,97975.0,0.30066691]
[1738854398757,2.1e-07,97976.0,97975.0,0.33429735]
[1738854399046,2.1e-07,97976.0,97975.0,0.32429735]
[1738854399402,2.1e-07,97976.0,97975.0,0.32129735]
[1738854399922,9.2e-07,97984.0,97983.0,0.15]
[1738854400075,9.2e-07,97984.0,97983.0,0.27652388]
[1738854400281,1e-08,97984.0,97983.0,0.27938103]
[1738854400535,1e-08,97984.0,97983.0,0.31000708]
[1738854401402,1e-08,97984.0,97983.0,0.31100708]
[1738854401607,1e-08,97984.0,97983.0,0.28038103]
[1738854401811,1e-08,97984.0,97983.0,0.12938103]
[1738854402014,1e-08,97984.0,97983.0,0.43346803]
[1738854402216,1e-08,97984.0,97983.0,0.41046803]
[1738854402419,1e-08,97984.0,97983.0,0.25946803]
[1738854402618,0.07760001,97984.0,97983.0,0.25946803]
[1738854403717,1e-08,97984.0,97983.0,0.25946803]
[1738854403855,1e-08,97984.0,97983.0,0.43246803]
[1738854404036,1e-08,97984.0,97983.0,0.4631905]
[1738854404237,1e-08,97984.0,97983.0,0.4491905]
[1738854404442,1e-08,97984.0,97983.0,0.4531905]
[1738854404643,1e-08,97984.0,97983.0,0.4671905]
[1738854404848,1e-08,97984.0,97983.0,0.4531905]
[1738854405047,1e-08,97984.0,97983.0,0.27246803]
[1738854405267,1e-08,97984.0,97983.0,0.41346803]
[1738854405476,1e-08,97984.0,97983.0,0.42246803]
[1738854405725,1e-08,97984.0,97983.0,0.4492704]
[1738854405936,1e-08,97984.0,97983.0,0.4452704]
[1738854406588,1e-08,97984.0,97983.0,0.4402704]
[1738854406798,1e-08,97984.0,97983.0,0.2932704]
[1738854407204,1e-08,97984.0,97983.0,0.2902704]
[1738854407395,1e-08,97984.0,97983.0,0.2992704]
[1738854407532,1e-08,97984.0,97983.0,0.3022704]
[1738854407733,1e-08,97984.0,97983.0,0.19976675]
[1738854407734,0.08150001,97984.0,97983.0,0.19976675]
[1738854408364,0.08150001,97984.0,97983.0,0.3022704]
[1738854408559,0.08150001,97984.0,97983.0,0.19976675]
[1738854408757,0.08150001,97984.0,97983.0,0.19676675]
[1738854409172,0.08150001,97984.0,97983.0,0.19976675]
[1738854409580,0.08150001,97984.0,97983.0,0.04667975]
[1738854409791,0.08150001,97984.0,97983.0,0.01587738]
[1738854410153,0.08150001,97984.0,97983.0,0.012]
[1738854410604,0.08150001,97984.0,97983.0,0.1567494]
[1738854410760,0.08150001,97984.0,97983.0,0.153087]
[1738854410961,0.08150001,97984.0,97983.0,0.1657494]
[1738854411196,0.08150001,97984.0,97983.0,0.26825305]
[1738854411924,0.08150001,97984.0,97983.0,0.29923848]
[1738854412239,0.08172409,97984.0,97983.0,0.30023848]
[1738854412570,0.08172409,97984.0,97983.0,0.19773483]
[1738854412803,0.23481009,97984.0,97983.0,0.0127691]
[1738854413002,0.23481009,97984.0,97983.0,0.0137691]
[1738854413003,0.08172409,97984.0,97983.0,0.0137691]
[1738854413205,0.23481009,97984.0,97983.0,0.0101067]
[1738854413610,0.23481009,97984.0,97983.0,0.0011067]
[1738854413809,0.08172409,97984.0,97983.0,0.0001067]
[1738854414057,0.08172409,97984.0,97983.0,0.16585959]
[1738854414337,0.08172409,97984.0,97983.0,0.15685959]
[1738854414493,0.08172409,97984.0,97983.0,0.16585959]
[1738854414924,0.08172409,97984.0,97983.0,0.15685959]
[1738854415127,0.08172409,97984.0,97983.0,0.26636324]
[1738854415350,0.08172409,97984.0,97983.0,0.29723152]
[1738854415686,0.08172409,97984.0,97983.0,0.18772787]
[1738854415890,0.08172409,97984.0,97983.0,0.15685959]
[1738854416266,0.08172409,97984.0,97983.0,0.00377259]
[1738854416661,0.08172409,97984.0,97983.0,0.00477259]
[1738854416890,0.23567556,97984.0,97983.0,0.00977259]
[1738854417091,0.23481009,97984.0,97983.0,0.00977259]
[1738854417315,0.153108,97970.0,97969.0,0.0001067]
[1738854417518,0.12986547,97970.0,97958.0,0.0001067]
[1738854417726,0.15,97963.0,97958.0,0.0001067]
[1738854417956,0.204198,97944.0,97931.0,0.312023]
[1738854418168,0.204154,97966.0,97931.0,0.312023]
[1738854418169,0.081,97942.0,97941.0,0.153153]
[1738854418376,0.081,97942.0,97941.0,0.15832514]
[1738854419004,0.081,97942.0,97941.0,0.00517214]
[1738854419240,0.234151,97942.0,97936.0,0.002]
[1738854419443,0.234151,97942.0,97941.0,0.00013908]
[1738854419648,0.281651,97942.0,97941.0,0.00013908]
[1738854420051,0.281651,97942.0,97941.0,0.00213908]
[1738854420813,0.282651,97942.0,97941.0,0.01113908]
[1738854421119,0.4552845,97942.0,97941.0,0.01113908]
[1738854421330,0.231497,97913.0,97901.0,0.08083625]
[1738854421542,0.0783,97913.0,97912.0,0.08130025]
[1738854421795,0.0783,97913.0,97912.0,0.08653457]
[1738854422003,0.0783,97913.0,97912.0,0.000464]
[1738854422211,0.0783,97913.0,97912.0,0.00569832]
[1738854422414,0.204193,97947.0,97912.0,0.00569832]
[1738854422415,0.0768,97927.0,97926.0,0.153176]
[1738854422833,0.0768,97927.0,97926.0,0.15843315]
[1738854423253,0.0784,97941.0,97940.0,0.153154]
[1738854423666,0.0784,97941.0,97940.0,0.15839264]
[1738854423878,0.231553,97941.0,97940.0,0.00523864]
[1738854424090,0.0784,97941.0,97940.0,0.00523864]
[1738854424311,0.0784,97941.0,97940.0,0.10774229]
[1738854424519,0.08006547,97957.0,97940.0,0.10774229]
[1738854424723,0.08006547,97957.0,97951.0,0.153136]
[1738854424931,0.153137,97952.0,97943.0,0.153149]
[1738854425131,0.08006547,97957.0,97941.0,0.0001067]
[1738854425132,0.153151,97942.0,97941.0,0.0001067]
[1738854425341,0.00086547,97949.0,97941.0,0.0001067]
[1738854425541,0.00086547,97948.0,97945.0,0.153146]
[1738854425750,0.0818,97942.0,97941.0,0.0001067]
[1738854425962,0.08266547,97942.0,97941.0,0.0001067]
[1738854427127,0.0818,97942.0,97941.0,0.0001067]
[1738854427523,0.00086547,97952.0,97951.0,0.153137]
[1738854427702,0.478227,97958.0,97941.0,0.0001067]
[1738854427703,0.3251,97958.0,97941.0,0.0001067]
[1738854427915,0.002,97948.0,97942.0,0.10250365]
[1738854428396,0.002,97948.0,97947.0,0.153144]
[1738854428591,0.00086547,97955.0,97942.0,0.10250365]
[1738854428747,0.00086547,97955.0,97948.0,0.153141]
[1738854428952,0.081,97956.0,97941.0,0.0001067]
[1738854429152,0.00086547,97955.0,97953.0,0.153134]
[1738854429411,0.02038652,97955.0,97941.0,0.0001067]
[1738854429541,0.15399847,97954.0,97947.0,0.153142]
[1738854429759,0.02038652,97955.0,97942.0,0.204202]
[1738854430254,0.02038652,97955.0,97941.0,0.0001067]
[1738854430455,0.02038652,97955.0,97953.0,0.001]
[1738854430677,0.153133,97954.0,97953.0,0.001]
[1738854430931,0.02038652,97955.0,97942.0,0.204202]
[1738854431137,0.081,97956.0,97942.0,0.001]
[1738854431359,0.081,97956.0,97955.0,0.153131]
[1738854431585,0.0802,97972.0,97971.0,0.153106]
[1738854432040,0.0802,97972.0,97971.0,0.15829677]
[1738854432252,0.00022408,97984.0,97971.0,0.00519077]
[1738854432253,0.0802,97983.0,97971.0,0.00519077]
[1738854432467,0.0802,97983.0,97982.0,0.153089]
[1738854432877,0.0802,97983.0,97982.0,0.00516922]
[1738854433095,0.233287,97983.0,97982.0,0.00516922]
[1738854433295,0.0802,97983.0,97950.0,0.08083625]
[1738854433500,0.0802,97983.0,97982.0,0.153089]
[1738854433719,0.0802,97983.0,97979.0,0.153093]
[1738854433930,0.0802,97983.0,97982.0,0.00516922]
[1738854434131,0.0802,97983.0,97955.0,0.204175]
[1738854434338,0.153092,97981.0,97973.0,0.153101]
[1738854434489,0.233288,97983.0,97982.0,0.001]
[1738854434700,0.0802,97983.0,97982.0,0.154089]
[1738854434897,0.0802,97983.0,97982.0,0.153089]
[1738854435099,0.00036309,97984.0,97983.0,0.153087]
[1738854435459,0.00036309,97984.0,97983.0,0.15824319]
[1738854435903,0.00036309,97984.0,97983.0,0.26176743]
[1738854436116,0.00036309,97984.0,97983.0,0.26074684]
[1738854436325,0.00036309,97984.0,97983.0,0.00515619]
[1738854436749,0.00036309,97984.0,97950.0,0.08083625]
[1738854436750,0.00036309,97984.0,97960.0,0.08083625]
[1738854436923,0.00036309,97984.0,97979.0,0.153093]
[1738854437126,0.00036309,97984.0,97982.0,0.153088]
[1738854437351,0.00036309,97984.0,97983.0,0.10452422]
[1738854437552,0.00036309,97984.0,97983.0,0.10865984]
[1738854438049,0.00036309,97984.0,97983.0,0.10765984]
[1738854438250,0.00136309,97984.0,97983.0,0.11465984]
[1738854439036,0.00136309,97984.0,97983.0,0.11565984]
[1738854441051,0.15444909,97984.0,97983.0,0.01315619]
[1738854441249,0.00136309,97984.0,97983.0,0.008]
[1738854441797,0.00136309,97984.0,97983.0,0.161087]
[1738854442014,0.00136309,97984.0,97983.0,0.16630988]
[1738854443436,0.00136309,97984.0,97983.0,0.26881353]
[1738854443914,0.00136309,97984.0,97983.0,0.41881353]
[1738854444698,0.00136309,97984.0,97983.0,0.26881353]
[1738854444921,0.00136309,97984.0,97983.0,0.26781353]
[1738854445067,0.00136309,97984.0,97983.0,0.26881353]
[1738854445704,0.00136309,97984.0,97983.0,0.26781353]
[1738854445920,0.00036309,97984.0,97983.0,0.26081353]
[1738854446264,0.00036309,97984.0,97983.0,0.26681353]
[1738854446467,0.00036309,97984.0,97983.0,0.26081353]
[1738854446933,0.00036309,97984.0,97983.0,0.26681353]
[1738854447189,0.00036309,97984.0,97983.0,0.26181353]
[1738854447517,0.00036309,97984.0,97983.0,0.26581353]
[1738854447720,0.00036309,97984.0,97983.0,0.26081353]
[1738854448160,0.00036309,97984.0,97983.0,0.26181353]
[1738854448568,0.00036309,97984.0,97983.0,0.26081353]